[Event "Live Chess"]
[Site "Chess.com"]
[Date "2023.05.20"]
[Round "-"]
[White "BMT6"]
[Black "Inaffectual"]
[Result "1-0"]
[WhiteElo "594"]
[BlackElo "561"]
[TimeControl "300"]
[EndTime "9:12:47 PDT"]
[Termination "BMT6 won on time"]

1. e4 {[%clk 0:04:58.7]} 1... e5 {[%clk 0:04:56.8]} 2. Nf3 {[%clk 0:04:54.1]}
2... Nc6 {[%clk 0:04:54.8]} 3. Nc3 {[%clk 0:04:50.5]} 3... Bc5 {[%clk
0:04:47.1]} 4. Bc4 {[%clk 0:04:42.1]} 4... d6 {[%clk 0:04:38.4]} 5. Ng5 {[%clk
0:04:39.9]} 5... Qxg5 {[%clk 0:04:30.2]} 6. d4 {[%clk 0:04:39.3]} 6... exd4
{[%clk 0:04:26.7]} 7. Bxg5 {[%clk 0:04:37.7]} 7... dxc3 {[%clk 0:04:20.8]} 8.
bxc3 {[%clk 0:04:31.4]} 8... f6 {[%clk 0:04:11.1]} 9. Qf3 {[%clk 0:04:28.2]}
9... Nd4 {[%clk 0:04:05.5]} 10. Qf4 {[%clk 0:04:21.6]} 10... Nxc2+ {[%clk
0:03:58.4]} 11. Ke2 {[%clk 0:04:18.6]} 11... d5 {[%clk 0:03:31.3]} 12. exd5
{[%clk 0:04:07.2]} 12... Bd7 {[%clk 0:03:10.4]} 13. Qe4+ {[%clk 0:04:02.9]}
13... Be7 {[%clk 0:03:02.9]} 14. Qxc2 {[%clk 0:03:59.9]} 14... O-O-O {[%clk
0:03:00.2]} 15. Bf4 {[%clk 0:03:56]} 15... Re8 {[%clk 0:02:57.4]} 16. Kf3 {[%clk
0:03:53.4]} 16... g5 {[%clk 0:02:49.6]} 17. Be3 {[%clk 0:03:37.9]} 17... g4+
{[%clk 0:02:39.6]} 18. Kg3 {[%clk 0:03:33.6]} 18... Bd6+ {[%clk 0:02:33]} 19.
Bf4 {[%clk 0:03:29.4]} 19... Nh6 {[%clk 0:02:05.7]} 20. Bxd6 {[%clk 0:03:26.8]}
20... cxd6 {[%clk 0:01:58.9]} 21. Rhe1 {[%clk 0:03:25.2]} 21... Nf5+ {[%clk
0:01:48.4]} 22. Kxg4 {[%clk 0:03:23.3]} 22... Nh6+ {[%clk 0:01:37.9]} 23. Kh5
{[%clk 0:03:19]} 23... Bf5 {[%clk 0:00:53.3]} 24. Rxe8+ {[%clk 0:03:14.9]} 24...
Rxe8 {[%clk 0:00:51.2]} 25. Bd3 {[%clk 0:03:07.4]} 25... Bxd3 {[%clk 0:00:41.9]}
26. Qxd3 {[%clk 0:03:05.7]} 26... Nf7 {[%clk 0:00:34.6]} 27. Qxh7 {[%clk
0:03:04.3]} 27... Re5+ {[%clk 0:00:31.8]} 28. Kg6 {[%clk 0:03:02.1]} 28... Rg5+
{[%clk 0:00:17.4]} 29. Kxf7 {[%clk 0:02:58.8]} 29... Rxg2 {[%clk 0:00:13.9]} 30.
Qh8+ {[%clk 0:02:54.7]} 30... Kc7 {[%clk 0:00:12.5]} 31. Rb1 {[%clk 0:02:51]}
31... Rxh2 {[%clk 0:00:11]} 32. Qe8 {[%clk 0:02:42.9]} 32... Rxf2 {[%clk
0:00:05.1]} 33. Qe7+ {[%clk 0:02:41]} 33... Kc8 {[%clk 0:00:02.9]} 34. Qe6+
{[%clk 0:02:37.4]} 34... Kc7 {[%clk 0:00:01.5]} 35. Qe8 {[%clk 0:02:25.4]} 1-0

[Event "Live Chess"]
[Site "Chess.com"]
[Date "2023.05.20"]
[Round "-"]
[White "Greenbecker"]
[Black "miguelchuk"]
[Result "1-0"]
[WhiteElo "1697"]
[BlackElo "1642"]
[TimeControl "300"]
[EndTime "9:12:48 PDT"]
[Termination "Greenbecker won by resignation"]

1. e4 {[%clk 0:04:54.9]} 1... a6 {[%clk 0:04:58.7]} 2. d4 {[%clk 0:04:53.2]}
2... b5 {[%clk 0:04:57.2]} 3. Nf3 {[%clk 0:04:51.7]} 3... Bb7 {[%clk 0:04:55.7]}
4. Nbd2 {[%clk 0:04:47.1]} 4... Nf6 {[%clk 0:04:49.5]} 5. e5 {[%clk 0:04:44.8]}
5... Nd5 {[%clk 0:04:46.1]} 6. c4 {[%clk 0:04:43.5]} 6... bxc4 {[%clk
0:04:43.9]} 7. Bxc4 {[%clk 0:04:37.7]} 7... g6 {[%clk 0:04:39.4]} 8. Qb3 {[%clk
0:04:30.8]} 8... Nc6 {[%clk 0:04:02.3]} 9. Bxd5 {[%clk 0:04:23.2]} 9... e6
{[%clk 0:03:57.6]} 10. Qxb7 {[%clk 0:04:09.1]} 10... exd5 {[%clk 0:03:54.5]} 11.
Qb3 {[%clk 0:04:00.7]} 11... Rb8 {[%clk 0:03:44.8]} 12. Qxd5 {[%clk 0:03:52.6]}
12... Nb4 {[%clk 0:03:40.2]} 13. Qe4 {[%clk 0:03:41.4]} 13... Be7 {[%clk
0:03:34.4]} 14. O-O {[%clk 0:03:33.9]} 14... O-O {[%clk 0:03:11.9]} 15. a3
{[%clk 0:03:29.2]} 15... Nc6 {[%clk 0:02:39.1]} 16. d5 {[%clk 0:03:26.2]} 16...
Na7 {[%clk 0:02:07.1]} 17. Nc4 {[%clk 0:03:13.9]} 17... f5 {[%clk 0:01:56.2]}
18. exf6 {[%clk 0:03:09.6]} 18... Bxf6 {[%clk 0:01:50.9]} 19. Re1 {[%clk
0:02:57.2]} 19... Nb5 {[%clk 0:01:32.7]} 20. Bh6 {[%clk 0:02:46.1]} 20... c5
{[%clk 0:01:07.6]} 21. dxc6 {[%clk 0:02:30.5]} 21... Rf7 {[%clk 0:00:24.9]} 22.
cxd7 {[%clk 0:02:16.8]} 22... Re7 {[%clk 0:00:19.7]} 23. Qd5+ {[%clk 0:02:13.3]}
23... Rf7 {[%clk 0:00:17.3]} 24. Re8+ {[%clk 0:02:06.5]} 1-0

[Event "Live Chess"]
[Site "Chess.com"]
[Date "2023.05.20"]
[Round "-"]
[White "Nazarenko_vital"]
[Black "JoshMcK"]
[Result "1-0"]
[WhiteElo "1563"]
[BlackElo "1546"]
[TimeControl "300"]
[EndTime "9:12:51 PDT"]
[Termination "Nazarenko_vital won by resignation"]

1. e4 {[%clk 0:04:54]} 1... c6 {[%clk 0:04:57.9]} 2. d4 {[%clk 0:04:51.9]} 2...
d5 {[%clk 0:04:57.2]} 3. Nd2 {[%clk 0:04:50.1]} 3... dxe4 {[%clk 0:04:54.2]} 4.
Nxe4 {[%clk 0:04:48.8]} 4... Nf6 {[%clk 0:04:54.1]} 5. Ng3 {[%clk 0:04:47.5]}
5... g6 {[%clk 0:04:50.9]} 6. Nf3 {[%clk 0:04:46.3]} 6... Bg7 {[%clk 0:04:49.5]}
7. c3 {[%clk 0:04:40.2]} 7... O-O {[%clk 0:04:48.5]} 8. Bg5 {[%clk 0:04:38.9]}
8... Bg4 {[%clk 0:04:40.5]} 9. Be2 {[%clk 0:04:37.4]} 9... Nbd7 {[%clk
0:04:38.2]} 10. h3 {[%clk 0:04:34.7]} 10... Be6 {[%clk 0:04:34.6]} 11. Qd2
{[%clk 0:04:29.7]} 11... Bd5 {[%clk 0:04:23]} 12. Bh6 {[%clk 0:04:26.7]} 12...
Ne4 {[%clk 0:04:14.1]} 13. Nxe4 {[%clk 0:04:18.5]} 13... Bxe4 {[%clk 0:04:14]}
14. Bxg7 {[%clk 0:04:16.8]} 14... Kxg7 {[%clk 0:04:13.5]} 15. h4 {[%clk
0:04:13.4]} 15... Bxf3 {[%clk 0:04:10.3]} 16. Bxf3 {[%clk 0:04:10.1]} 16... e5
{[%clk 0:04:09.4]} 17. h5 {[%clk 0:04:04.8]} 17... exd4 {[%clk 0:03:57.3]} 18.
Qxd4+ {[%clk 0:04:02.7]} 18... Kg8 {[%clk 0:03:53.4]} 19. O-O-O {[%clk
0:03:58.3]} 19... Nb6 {[%clk 0:03:51.4]} 20. Qe5 {[%clk 0:03:31.7]} 20... Qe8
{[%clk 0:03:45.2]} 21. Qf6 {[%clk 0:03:29.6]} 21... Qe6 {[%clk 0:03:35.7]} 22.
Qh4 {[%clk 0:03:16.4]} 22... Qf5 {[%clk 0:03:29.8]} 23. hxg6 {[%clk 0:03:06.6]}
23... Qxg6 {[%clk 0:03:24]} 24. Be4 {[%clk 0:02:58.3]} 24... f5 {[%clk 0:03:22]}
25. Bc2 {[%clk 0:02:21.6]} 25... Rf7 {[%clk 0:03:00]} 26. g4 {[%clk 0:01:45.6]}
26... Rg7 {[%clk 0:02:46.4]} 27. Rd8+ {[%clk 0:01:36.7]} 27... Rxd8 {[%clk
0:02:40.3]} 28. Qxd8+ {[%clk 0:01:36.2]} 28... Kf7 {[%clk 0:02:39.4]} 29. Bxf5
{[%clk 0:01:29.9]} 29... Qg5+ {[%clk 0:02:35.7]} 30. Qxg5 {[%clk 0:01:25.2]}
30... Rxg5 {[%clk 0:02:35.6]} 31. Rxh7+ {[%clk 0:01:20.9]} 31... Kf6 {[%clk
0:02:34.1]} 32. Rxb7 {[%clk 0:01:17.5]} 32... Nc4 {[%clk 0:02:32.8]} 33. Rxa7
{[%clk 0:01:12.7]} 33... Nd6 {[%clk 0:02:28.9]} 34. f4 {[%clk 0:01:01.1]} 34...
Rg8 {[%clk 0:02:24.3]} 35. Bd7 {[%clk 0:00:55.5]} 35... Ne4 {[%clk 0:02:16.4]}
36. Rc7 {[%clk 0:00:50.2]} 36... Rd8 {[%clk 0:02:10]} 37. Kc2 {[%clk 0:00:45.6]}
37... Nc5 {[%clk 0:02:05.5]} 38. Bf5 {[%clk 0:00:41.7]} 38... Ne6 {[%clk
0:01:59.7]} 39. Rxc6 {[%clk 0:00:37.9]} 39... Re8 {[%clk 0:01:57.6]} 40. Bxe6
{[%clk 0:00:34.5]} 40... Rxe6 {[%clk 0:01:55.7]} 41. Rxe6+ {[%clk 0:00:31.6]}
41... Kxe6 {[%clk 0:01:55.6]} 42. a4 {[%clk 0:00:28.2]} 1-0

[Event "Live Chess"]
[Site "Chess.com"]
[Date "2023.05.20"]
[Round "-"]
[White "stevefairhurst"]
[Black "aliciabutteriss"]
[Result "1-0"]
[WhiteElo "523"]
[BlackElo "502"]
[TimeControl "300"]
[EndTime "9:12:51 PDT"]
[Termination "stevefairhurst won on time"]

1. e4 {[%clk 0:04:58.2]} 1... c6 {[%clk 0:04:59.2]} 2. Nf3 {[%clk 0:04:57.1]}
2... d5 {[%clk 0:04:58]} 3. exd5 {[%clk 0:04:55.8]} 3... cxd5 {[%clk 0:04:56.9]}
4. Ng5 {[%clk 0:04:53.8]} 4... e6 {[%clk 0:04:49.9]} 5. Qf3 {[%clk 0:04:52.2]}
5... Qxg5 {[%clk 0:04:41.3]} 6. d4 {[%clk 0:04:50.4]} 6... Qg6 {[%clk 0:04:24]}
7. Nc3 {[%clk 0:04:45.7]} 7... Nf6 {[%clk 0:04:20.3]} 8. Nb5 {[%clk 0:04:44.4]}
8... Bb4+ {[%clk 0:04:03.1]} 9. c3 {[%clk 0:04:42.1]} 9... Ba5 {[%clk 0:04:02]}
10. Nc7+ {[%clk 0:04:40.5]} 10... Bxc7 {[%clk 0:04:00.1]} 11. Bf4 {[%clk
0:04:35.6]} 11... Bxf4 {[%clk 0:03:47.8]} 12. Qxf4 {[%clk 0:04:34.2]} 12... Qc2
{[%clk 0:03:37.6]} 13. Bb5+ {[%clk 0:04:28.3]} 13... Bd7 {[%clk 0:03:29.1]} 14.
Bxd7+ {[%clk 0:04:24.1]} 14... Nbxd7 {[%clk 0:03:25.1]} 15. h4 {[%clk
0:04:17.6]} 15... Qxb2 {[%clk 0:03:19.2]} 16. Rd1 {[%clk 0:04:15.8]} 16... Qxc3+
{[%clk 0:03:13.4]} 17. Ke2 {[%clk 0:04:14.1]} 17... Rc8 {[%clk 0:03:01]} 18. Rd2
{[%clk 0:04:10.6]} 18... Qc4+ {[%clk 0:02:52.1]} 19. Rd3 {[%clk 0:04:09.1]}
19... Qxa2+ {[%clk 0:02:47.5]} 20. Rd2 {[%clk 0:04:07.8]} 20... Qa6+ {[%clk
0:02:38.6]} 21. Rd3 {[%clk 0:04:05.1]} 21... Ne4 {[%clk 0:02:35.1]} 22. Rd1
{[%clk 0:04:01.3]} 22... Qa2+ {[%clk 0:02:20.7]} 23. Kf3 {[%clk 0:03:59.4]}
23... Qxf2+ {[%clk 0:02:17]} 24. Kg4 {[%clk 0:03:56.3]} 24... Qe2+ {[%clk
0:02:05.6]} 25. Qf3 {[%clk 0:03:50.1]} 25... Ndf6+ {[%clk 0:01:58.2]} 26. Kf4
{[%clk 0:03:45.9]} 26... Nh5+ {[%clk 0:01:48.4]} 27. Kg4 {[%clk 0:03:39.8]}
27... Nef6+ {[%clk 0:01:40.4]} 28. Kh3 {[%clk 0:03:29.1]} 28... Qe5 {[%clk
0:01:32.7]} 29. Re3 {[%clk 0:03:16.7]} 29... Qxe3 {[%clk 0:01:12.7]} 30. Qxe3
{[%clk 0:03:14.8]} 30... Rc2 {[%clk 0:01:08.6]} 31. Re1 {[%clk 0:03:12.8]} 31...
O-O {[%clk 0:01:00.6]} 32. g4 {[%clk 0:03:06.7]} 32... Rfc8 {[%clk 0:01:00.5]}
33. gxh5 {[%clk 0:03:05.4]} 33... R8c3 {[%clk 0:00:55.1]} 34. Qxc3 {[%clk
0:03:01.9]} 34... Rxc3+ {[%clk 0:00:53.9]} 35. Kg2 {[%clk 0:02:59]} 35... Ng4
{[%clk 0:00:47.2]} 36. Kf1 {[%clk 0:02:56]} 36... Rf3+ {[%clk 0:00:42.3]} 37.
Ke2 {[%clk 0:02:54.9]} 37... Re3+ {[%clk 0:00:37.9]} 38. Kf1 {[%clk 0:02:50.4]}
38... Rf3+ {[%clk 0:00:35.1]} 39. Ke2 {[%clk 0:02:49.1]} 39... Re3+ {[%clk
0:00:34.4]} 40. Kd2 {[%clk 0:02:46.9]} 40... Rxe1 {[%clk 0:00:30.9]} 41. Kxe1
{[%clk 0:02:46]} 41... Nf6 {[%clk 0:00:26.9]} 42. h6 {[%clk 0:02:44.5]} 42...
gxh6 {[%clk 0:00:25]} 43. Kf2 {[%clk 0:02:42.7]} 43... Ne4+ {[%clk 0:00:20.9]}
44. Ke3 {[%clk 0:02:41.4]} 44... Nf6 {[%clk 0:00:17.8]} 45. Kd3 {[%clk
0:02:40.1]} 45... e5 {[%clk 0:00:16.9]} 46. dxe5 {[%clk 0:02:38.4]} 46... Nd7
{[%clk 0:00:15.3]} 47. Kd4 {[%clk 0:02:35.5]} 47... f6 {[%clk 0:00:13.4]} 48. e6
{[%clk 0:02:34.2]} 48... Kf8 {[%clk 0:00:10.2]} 49. Kxd5 {[%clk 0:02:32.6]}
49... Nb6+ {[%clk 0:00:06.7]} 50. Kd6 {[%clk 0:02:30.8]} 50... Nc4+ {[%clk
0:00:04.5]} 51. Kd7 {[%clk 0:02:28.6]} 51... Ne5+ {[%clk 0:00:02.3]} 52. Kd6
{[%clk 0:02:26.4]} 52... Nf3 {[%clk 0:00:01.6]} 53. e7+ {[%clk 0:02:25.4]} 1-0

[Event "Live Chess"]
[Site "Chess.com"]
[Date "2023.05.20"]
[Round "-"]
[White "kravtcle"]
[Black "smoggyrabbit"]
[Result "0-1"]
[WhiteElo "1615"]
[BlackElo "1643"]
[TimeControl "300"]
[EndTime "9:13:00 PDT"]
[Termination "smoggyrabbit won by checkmate"]

1. d4 {[%clk 0:04:57.9]} 1... e6 {[%clk 0:04:58.7]} 2. c4 {[%clk 0:04:55.8]}
2... f5 {[%clk 0:04:57.2]} 3. Nc3 {[%clk 0:04:55.4]} 3... Nf6 {[%clk 0:04:55.7]}
4. Bg5 {[%clk 0:04:55]} 4... Bb4 {[%clk 0:04:54.1]} 5. Nf3 {[%clk 0:04:53.8]}
5... O-O {[%clk 0:04:49.8]} 6. e3 {[%clk 0:04:52.4]} 6... b6 {[%clk 0:04:48.7]}
7. Bd3 {[%clk 0:04:45]} 7... Bb7 {[%clk 0:04:47.6]} 8. O-O {[%clk 0:04:42.8]}
8... d6 {[%clk 0:04:45.2]} 9. Rc1 {[%clk 0:04:37]} 9... Bxc3 {[%clk 0:04:42.6]}
10. Rxc3 {[%clk 0:04:35.8]} 10... Nbd7 {[%clk 0:04:41.8]} 11. b4 {[%clk
0:04:30.4]} 11... h6 {[%clk 0:04:36.2]} 12. Bh4 {[%clk 0:04:26.4]} 12... Qe8
{[%clk 0:04:25]} 13. c5 {[%clk 0:04:14.7]} 13... Ne4 {[%clk 0:03:38.3]} 14. Rc1
{[%clk 0:03:53.5]} 14... dxc5 {[%clk 0:03:27.6]} 15. dxc5 {[%clk 0:03:53.4]}
15... bxc5 {[%clk 0:03:22.2]} 16. Bxe4 {[%clk 0:03:44.3]} 16... fxe4 {[%clk
0:03:19.7]} 17. Nd2 {[%clk 0:03:36.7]} 17... Rf5 {[%clk 0:02:20.3]} 18. Nb3
{[%clk 0:03:22.3]} 18... c4 {[%clk 0:01:23.4]} 19. Rxc4 {[%clk 0:03:13.3]} 19...
Ba6 {[%clk 0:01:20.8]} 20. Rxc7 {[%clk 0:03:07.3]} 20... Bxf1 {[%clk 0:01:19.2]}
21. Qxd7 {[%clk 0:02:59.8]} 21... Qxd7 {[%clk 0:01:10.1]} 22. Rxd7 {[%clk
0:02:59.7]} 22... Bb5 {[%clk 0:01:07.6]} 23. Re7 {[%clk 0:02:46.7]} 23... g5
{[%clk 0:00:46.2]} 24. Nd4 {[%clk 0:02:28.8]} 24... Rd5 {[%clk 0:00:18.2]} 25.
Bg3 {[%clk 0:02:18.5]} 25... Rc8 {[%clk 0:00:16.5]} 26. h3 {[%clk 0:02:16.4]}
26... Rc1+ {[%clk 0:00:15.2]} 27. Kh2 {[%clk 0:02:15.5]} 27... Rb1 {[%clk
0:00:12.8]} 28. Nxb5 {[%clk 0:02:12.6]} 28... Rxb5 {[%clk 0:00:11.3]} 29. Rxe6
{[%clk 0:02:10.1]} 29... R5xb4 {[%clk 0:00:10.2]} 30. Rxh6 {[%clk 0:02:07.2]}
30... Ra1 {[%clk 0:00:07.6]} 31. Ra6 {[%clk 0:02:04.5]} 31... Rbb1 {[%clk
0:00:06.4]} 32. Rxa7 {[%clk 0:02:03.1]} 32... Rh1# {[%clk 0:00:05.1]} 0-1

[Event "Live Chess"]
[Site "Chess.com"]
[Date "2023.05.20"]
[Round "-"]
[White "dhanushkasri"]
[Black "ethanredball"]
[Result "1/2-1/2"]
[WhiteElo "553"]
[BlackElo "548"]
[TimeControl "300"]
[EndTime "9:13:02 PDT"]
[Termination "Game drawn - insufficient material"]

1. e4 {[%clk 0:04:48.3]} 1... e5 {[%clk 0:04:58.4]} 2. Ba6 {[%clk 0:04:42.1]}
2... bxa6 {[%clk 0:04:54.9]} 3. Nf3 {[%clk 0:04:32.4]} 3... Nc6 {[%clk
0:04:53.1]} 4. O-O {[%clk 0:04:30.3]} 4... Nf6 {[%clk 0:04:51.1]} 5. Nc3 {[%clk
0:04:24.7]} 5... Bb4 {[%clk 0:04:49]} 6. a3 {[%clk 0:04:18.4]} 6... Bxc3 {[%clk
0:04:46.9]} 7. dxc3 {[%clk 0:04:16.5]} 7... O-O {[%clk 0:04:45]} 8. Bg5 {[%clk
0:03:59.3]} 8... h6 {[%clk 0:04:42.6]} 9. Bxf6 {[%clk 0:03:56.1]} 9... Qxf6
{[%clk 0:04:40.9]} 10. c4 {[%clk 0:03:48.2]} 10... Qd6 {[%clk 0:04:39]} 11. Qxd6
{[%clk 0:03:42.8]} 11... cxd6 {[%clk 0:04:37]} 12. Rad1 {[%clk 0:03:39]} 12...
Nd4 {[%clk 0:04:29]} 13. Nxd4 {[%clk 0:03:34.3]} 13... exd4 {[%clk 0:04:27.5]}
14. Rxd4 {[%clk 0:03:29.7]} 14... Rb8 {[%clk 0:04:24.8]} 15. Rxd6 {[%clk
0:03:23.5]} 15... Rb6 {[%clk 0:04:18.7]} 16. Rxb6 {[%clk 0:03:17.6]} 16... axb6
{[%clk 0:04:17.3]} 17. Rd1 {[%clk 0:03:02]} 17... Rd8 {[%clk 0:04:13.7]} 18. Rd6
{[%clk 0:02:57.6]} 18... b5 {[%clk 0:04:09.7]} 19. cxb5 {[%clk 0:02:52.7]} 19...
axb5 {[%clk 0:04:08.2]} 20. Rd5 {[%clk 0:02:45.9]} 20... Ba6 {[%clk 0:04:04.9]}
21. b4 {[%clk 0:02:43]} 21... Re8 {[%clk 0:03:58.9]} 22. Rxd7 {[%clk 0:02:35.8]}
22... Rxe4 {[%clk 0:03:52.9]} 23. g3 {[%clk 0:02:34.7]} 23... Re1+ {[%clk
0:03:45.5]} 24. Kg2 {[%clk 0:02:31.1]} 24... Bc8 {[%clk 0:03:44]} 25. Rd8+
{[%clk 0:02:26.2]} 25... Kh7 {[%clk 0:03:40.6]} 26. Rxc8 {[%clk 0:02:24.6]}
26... Ra1 {[%clk 0:03:38.2]} 27. Rc7 {[%clk 0:02:15.2]} 27... Kg6 {[%clk
0:03:34.1]} 28. Ra7 {[%clk 0:01:59.5]} 28... Rc1 {[%clk 0:03:31.2]} 29. Rc7
{[%clk 0:01:44.9]} 29... Ra1 {[%clk 0:03:28.8]} 30. g4 {[%clk 0:01:30.5]} 30...
Ra2 {[%clk 0:03:26.5]} 31. c3 {[%clk 0:01:26.3]} 31... Rxa3 {[%clk 0:03:24.3]}
32. Rc5 {[%clk 0:01:22.7]} 32... Rb3 {[%clk 0:03:15]} 33. Rxb5 {[%clk
0:01:19.2]} 33... Rxc3 {[%clk 0:03:13.3]} 34. Ra5 {[%clk 0:01:14.3]} 34... Rc4
{[%clk 0:03:03.9]} 35. b5 {[%clk 0:01:12.8]} 35... Rb4 {[%clk 0:03:00]} 36. g5
{[%clk 0:01:05.8]} 36... hxg5 {[%clk 0:02:57.7]} 37. f3 {[%clk 0:00:57.1]} 37...
Kf6 {[%clk 0:02:55.2]} 38. h3 {[%clk 0:00:54.2]} 38... Kf5 {[%clk 0:02:52.2]}
39. Kg3 {[%clk 0:00:52.7]} 39... f6 {[%clk 0:02:46.3]} 40. b6+ {[%clk
0:00:48.2]} 40... Ke6 {[%clk 0:02:43]} 41. Ra6 {[%clk 0:00:46]} 41... Kd5 {[%clk
0:02:40.1]} 42. Ra5+ {[%clk 0:00:39]} 42... Kc6 {[%clk 0:02:36.3]} 43. Ra6
{[%clk 0:00:37.2]} 43... Rxb6 {[%clk 0:02:34]} 44. Rxb6+ {[%clk 0:00:35.2]}
44... Kxb6 {[%clk 0:02:32.7]} 45. Kg4 {[%clk 0:00:32.5]} 45... Kc5 {[%clk
0:02:31]} 46. Kf5 {[%clk 0:00:25.3]} 46... Kd6 {[%clk 0:02:29.4]} 47. Kg6 {[%clk
0:00:23.7]} 47... Ke5 {[%clk 0:02:27.7]} 48. Kxg7 {[%clk 0:00:22.6]} 48... f5
{[%clk 0:02:26.2]} 49. Kg6 {[%clk 0:00:19]} 49... Kf4 {[%clk 0:02:24.7]} 50. Kf6
{[%clk 0:00:15.4]} 50... g4 {[%clk 0:02:21.5]} 51. hxg4 {[%clk 0:00:14.1]} 51...
fxg4 {[%clk 0:02:20.1]} 52. fxg4 {[%clk 0:00:08]} 52... Kxg4 {[%clk 0:02:18.8]}
1/2-1/2

[Event "Live Chess"]
[Site "Chess.com"]
[Date "2023.05.20"]
[Round "-"]
[White "f4nomore"]
[Black "noobsmoker24"]
[Result "0-1"]
[WhiteElo "1349"]
[BlackElo "1368"]
[TimeControl "300"]
[EndTime "9:13:05 PDT"]
[Termination "noobsmoker24 won by checkmate"]

1. d4 {[%clk 0:04:56.1]} 1... Nf6 {[%clk 0:04:59.1]} 2. Bg5 {[%clk 0:04:53.5]}
2... Ne4 {[%clk 0:04:58]} 3. Bh4 {[%clk 0:04:49]} 3... d5 {[%clk 0:04:54.8]} 4.
f3 {[%clk 0:04:46.1]} 4... Nf6 {[%clk 0:04:49.2]} 5. e3 {[%clk 0:04:43.3]} 5...
c5 {[%clk 0:04:47]} 6. c3 {[%clk 0:04:41.7]} 6... Nc6 {[%clk 0:04:46]} 7. Bd3
{[%clk 0:04:38.7]} 7... cxd4 {[%clk 0:04:24.4]} 8. cxd4 {[%clk 0:04:36.6]} 8...
e6 {[%clk 0:04:02]} 9. Ne2 {[%clk 0:04:33.3]} 9... Be7 {[%clk 0:03:51]} 10. O-O
{[%clk 0:04:30.3]} 10... O-O {[%clk 0:03:49.8]} 11. Nbc3 {[%clk 0:04:27.6]}
11... a6 {[%clk 0:03:43.3]} 12. a3 {[%clk 0:04:20.5]} 12... h6 {[%clk
0:03:32.2]} 13. Qc2 {[%clk 0:04:13.5]} 13... Nd7 {[%clk 0:03:24.1]} 14. Bxe7
{[%clk 0:04:11.3]} 14... Qxe7 {[%clk 0:03:24]} 15. Ng3 {[%clk 0:04:09.1]} 15...
Nf6 {[%clk 0:03:17.6]} 16. Nce2 {[%clk 0:04:00.5]} 16... Rd8 {[%clk 0:03:16.4]}
17. f4 {[%clk 0:03:51.6]} 17... Ng4 {[%clk 0:03:08.6]} 18. Qd2 {[%clk
0:03:49.6]} 18... Nf6 {[%clk 0:02:48.4]} 19. f5 {[%clk 0:03:46.2]} 19... e5
{[%clk 0:02:46.4]} 20. Qe1 {[%clk 0:03:15.8]} 20... e4 {[%clk 0:02:42]} 21. Bc2
{[%clk 0:03:10.3]} 21... Ng4 {[%clk 0:02:27.6]} 22. Nf4 {[%clk 0:03:08.6]} 22...
Qg5 {[%clk 0:02:00.6]} 23. h3 {[%clk 0:03:04.1]} 23... Nf6 {[%clk 0:01:59.3]}
24. Bb3 {[%clk 0:02:32.3]} 24... Bxf5 {[%clk 0:01:55.3]} 25. Nxf5 {[%clk
0:02:28.2]} 25... Qxf5 {[%clk 0:01:51.9]} 26. Nd3 {[%clk 0:02:18.7]} 26... Qg6
{[%clk 0:01:39]} 27. Ne5 {[%clk 0:02:12.5]} 27... Nxe5 {[%clk 0:01:37.2]} 28.
dxe5 {[%clk 0:02:11]} 28... Nd7 {[%clk 0:01:21.5]} 29. Bxd5 {[%clk 0:02:09]}
29... Nxe5 {[%clk 0:01:20.7]} 30. Bxb7 {[%clk 0:01:59.6]} 30... Rab8 {[%clk
0:01:18.3]} 31. Qc3 {[%clk 0:01:38.7]} 31... Nf3+ {[%clk 0:00:58.1]} 32. Kh1
{[%clk 0:01:26]} 32... Rxb7 {[%clk 0:00:56.7]} 33. gxf3 {[%clk 0:01:18.1]} 33...
Qg3 {[%clk 0:00:52.2]} 34. Rg1 {[%clk 0:01:13.6]} 34... Qxh3# {[%clk 0:00:50.9]}
0-1